bitfinex/quotes_ETHUSD_20250329
["timestamp","ask_amount","ask_price","bid_price","bid_amount"]
[1743227054725,10.08995552,1892.8,1892.6,0.28847993]
[1743227054936,10.08995552,1892.8,1892.7,0.00160432]
[1743227055132,10.08995552,1892.8,1892.6,0.28847993]
[1743227055337,8.28323,1892.8,1892.7,0.00160432]
[1743227055510,8.28323,1892.8,1892.6,0.28847993]
[1743227055712,8.28323,1892.8,1892.7,0.00160432]
[1743227055926,8.28323,1892.8,1892.6,0.28847993]
[1743227056136,8.28323,1892.8,1892.7,0.00160432]
[1743227056441,8.28323,1892.8,1892.6,0.28847993]
[1743227056605,8.28323,1892.8,1892.7,0.00160432]
[1743227057042,8.28323,1892.8,1892.6,0.28847993]
[1743227057339,8.28323,1892.8,1892.7,0.00160432]
[1743227057545,8.28323,1892.8,1892.6,0.28847993]
[1743227057721,8.28323,1892.8,1892.7,0.00160432]
[1743227057905,8.28323,1892.8,1892.6,0.28847993]
[1743227058113,8.28323,1892.8,1892.7,0.00160432]
[1743227059224,8.28323,1892.8,1892.6,0.28847993]
[1743227059429,8.28323,1892.8,1892.7,0.00160432]
[1743227059753,8.28323,1892.8,1892.6,0.28847993]
[1743227060053,8.28323,1892.8,1892.7,0.00160432]
[1743227060452,8.28323,1892.8,1892.6,0.28847993]
[1743227060659,8.28323,1892.8,1892.7,0.00160432]
[1743227060954,8.28323,1892.8,1892.6,0.28847993]
[1743227061253,8.28323,1892.8,1892.7,0.00160432]
[1743227061556,8.28323,1892.8,1892.6,0.28847993]
[1743227061751,8.28323,1892.8,1892.7,0.00160432]
[1743227061945,8.28323,1892.8,1892.6,0.28847993]
[1743227062145,8.28323,1892.8,1892.7,0.00160432]
[1743227062345,8.28323,1892.8,1892.6,0.28847993]
[1743227062654,8.28323,1892.8,1892.7,0.00160432]
[1743227063045,8.28323,1892.8,1892.6,0.28847993]
[1743227063445,8.28323,1892.8,1892.7,0.00160432]
[1743227063852,2.62052552,1893.3,1892.8,0.7749]
[1743227064048,1.80672552,1893.5,1893.1,6.05711]
[1743227064354,7.08827552,1893.4,1893.1,0.7749]
[1743227065162,5.28178,1893.3,1893.1,0.7749]
[1743227065759,7.08827552,1893.4,1893.1,0.7749]
[1743227067557,12.37003552,1893.4,1893.1,0.7749]
[1743227069358,12.37003552,1893.4,1893.2,0.28573502]
[1743227072158,4.80672552,1893.4,1893.2,0.28573502]
[1743227072361,1.80672552,1893.3,1893.2,0.28573502]
[1743227072565,7.08850552,1893.3,1893.2,0.28573502]
[1743227072757,7.08850552,1893.3,1892.9,0.8164]
[1743227072758,5.28221,1893.2,1892.9,0.8164]
[1743227072927,1.80672552,1893.1,1893.0,0.28659745]
[1743227073672,7.08906552,1893.1,1893.0,0.28659745]
[1743227074160,7.08906552,1893.1,1892.8,1.06064135]
[1743227074363,7.08906552,1893.1,1892.9,0.28671454]
[1743227074564,0.7518,1893.4,1892.9,0.28671454]
[1743227074768,7.83958552,1893.6,1893.1,5.28208]
[1743227074964,3.0,1893.4,1893.2,1.63034302]
[1743227075346,4.80672552,1893.4,1893.2,1.63034302]
[1743227075576,10.08823552,1893.4,1893.2,1.63034302]
[1743227075771,10.08823552,1893.4,1893.2,1.10213502]
[1743227076393,3.0,1893.4,1893.2,1.10213502]
[1743227078297,8.28154,1893.4,1893.2,1.10213502]
[1743227078503,10.08826552,1893.4,1893.2,1.10213502]
[1743227079711,10.08826552,1893.4,1893.2,2.14721231]
[1743227081204,4.80672552,1893.4,1893.2,2.14721231]
[1743227081406,4.80672552,1893.4,1893.2,2.89016454]
[1743227081580,3.0,1893.4,1893.2,2.89016454]
[1743227082620,8.28151,1893.4,1893.2,2.89016454]
[1743227082789,8.28151,1893.4,1893.2,2.14721231]
[1743227082995,10.08823552,1893.4,1893.2,2.14721231]
[1743227083897,10.08823552,1893.4,1893.2,1.33081231]
[1743227084184,5.28178,1893.3,1893.2,0.28573502]
[1743227085215,10.08823552,1893.4,1893.2,0.28573502]
[1743227088914,15.36996552,1893.4,1893.2,0.28573502]
[1743227089110,7.08850552,1893.3,1893.2,0.28573502]
[1743227089420,7.08850552,1893.3,1892.9,6.06919]
[1743227089716,1.80672552,1893.1,1892.9,0.7863]
[1743227089884,7.08896552,1893.2,1892.8,6.33948079]
[1743227091415,7.08883552,1893.2,1892.8,6.33948079]
[1743227091615,7.08883552,1893.2,1892.9,0.63394808]
[1743227095336,7.08883552,1893.2,1892.9,1.42024808]
[1743227097339,5.28211,1893.2,1892.9,1.42024808]
[1743227098134,7.08883552,1893.2,1892.9,1.42024808]
[1743227098648,7.86421552,1893.0,1892.6,5.28345]
[1743227098846,7.86421552,1893.0,1892.5,6.07031]
[1743227098847,1.80672552,1892.8,1892.5,6.07031]
[1743227099005,1.80672552,1892.8,1892.5,7.11594532]
[1743227099206,1.80672552,1892.8,1892.6,0.71159453]
[1743227099407,1.80672552,1892.8,1892.7,0.28641104]
[1743227099606,5.28317,1892.8,1892.6,0.71159453]
[1743227099807,5.28317,1892.8,1892.7,0.28641104]
[1743227100106,7.08974552,1892.9,1892.5,7.11589532]
[1743227100307,7.08974552,1892.9,1892.7,0.28641104]
[1743227100532,7.08974552,1892.9,1892.5,7.11589532]
[1743227100533,7.08974552,1892.9,1892.6,0.28652817]
[1743227100838,1.80672552,1892.9,1892.7,0.28641104]
[1743227101202,7.08963552,1892.9,1892.5,7.11580532]
[1743227101539,7.08963552,1892.9,1892.6,0.9981087]
[1743227102242,1.80672552,1892.9,1892.6,0.9981087]
[1743227102642,7.08967552,1892.9,1892.6,0.9981087]
[1743227103349,1.80672552,1893.0,1892.7,5.28333]
[1743227103553,7.08936552,1893.0,1892.6,6.2816887]
[1743227103723,7.08936552,1893.0,1892.8,0.28629392]
[1743227104037,7.08936552,1893.0,1892.9,0.28665471]
[1743227104545,3.0,1893.1,1892.8,6.05184]
[1743227104716,3.0,1893.1,1892.9,0.28665471]
[1743227106017,1.80672552,1893.2,1892.9,5.56939471]
[1743227106236,6.74772552,1893.3,1893.0,0.55693947]
[1743227106537,1.80672552,1893.2,1893.1,0.28623869]
[1743227106913,11.29106059,1893.3,1892.9,10.56545]
[1743227107114,11.29106059,1893.3,1893.1,0.28623869]
[1743227107314,16.57302059,1893.3,1893.0,0.28653762]
[1743227107617,11.29106059,1893.3,1893.1,0.28623869]
[1743227107816,11.29106059,1893.3,1892.9,6.3596567]
[1743227108037,11.29106059,1893.3,1893.0,0.28653762]
[1743227108233,6.00911059,1893.3,1893.0,5.56904762]
[1743227108435,12.09151,1893.4,1893.0,6.33784762]
[1743227108634,5.28151,1893.4,1893.0,6.33784762]
[1743227108943,8.28151,1893.4,1893.0,6.33784762]
[1743227109140,8.28151,1893.4,1893.1,0.63378476]
[1743227109344,3.0,1893.4,1893.1,5.91601476]
[1743227109544,3.0,1893.4,1893.2,0.28551594]
[1743227110145,3.0,1893.4,1893.0,6.05134]
[1743227110472,3.0,1893.4,1893.0,11.33375]
[1743227110644,8.28151,1893.4,1893.1,1.41945444]
[1743227111242,3.0,1893.4,1893.1,6.70162444]
[1743227111444,3.0,1893.4,1893.2,5.28194]
[1743227111744,3.0,1893.4,1893.3,0.28495251]
[1743227112149,3.0,1893.4,1893.2,5.28205]
[1743227112346,3.0,1893.4,1893.3,0.28495251]
[1743227113047,3.0,1893.4,1893.1,6.415525]
[1743227113247,3.0,1893.4,1893.2,0.28551594]
[1743227113248,11.29069059,1893.4,1893.2,0.28551594]
[1743227113447,3.0,1893.4,1893.2,0.28551594]
[1743227113742,3.0,1893.4,1893.2,6.23766203]
[1743227114252,9.04007059,1893.6,1893.2,6.23766203]
[1743227116053,9.04007059,1893.6,1893.2,0.95561203]
[1743227116054,5.28123,1893.5,1893.2,0.95561203]
[1743227116352,5.28123,1893.5,1893.2,0.28551594]
[1743227120131,3.75911059,1893.6,1893.2,6.34296594]
[1743227120331,9.04013059,1893.6,1893.2,6.34296594]
[1743227122058,8.29013059,1893.6,1893.2,6.34296594]
[1743227122666,3.00911059,1893.6,1893.3,5.28176]
[1743227123160,3.00911059,1893.6,1893.4,0.28319456]
[1743227124361,8.29007059,1893.6,1893.4,0.28319456]
[1743227124557,8.29007059,1893.6,1893.2,6.05745]
[1743227124859,11.29007059,1893.6,1893.2,6.663195]
[1743227125060,11.29007059,1893.6,1893.3,0.28375794]
[1743227127138,6.00911059,1893.6,1893.3,5.56544794]
[1743227127331,3.00911059,1893.6,1893.3,5.56544794]
[1743227129763,8.29013059,1893.6,1893.3,0.28375794]
[1743227129975,3.00911059,1893.6,1893.3,5.56550794]
[1743227130268,3.00911059,1893.6,1893.3,6.89224093]
[1743227132175,3.00911059,1893.6,1893.4,0.7885]
[1743227132373,3.00911059,1893.6,1893.3,0.28375794]
[1743227132674,6.05869,1893.6,1893.4,0.28277653]
[1743227132862,7.86461647,1893.5,1893.4,0.28277653]
[1743227133062,5.2826,1893.1,1892.6,34.02897]
[1743227133374,1.80579647,1892.7,1892.5,5.284]
[1743227134948,5.28289,1892.9,1892.5,5.284]
[1743227134949,3.01052387,1892.8,1892.5,5.284]
[1743227135546,3.01052387,1892.8,1892.5,10.56785]
[1743227135746,3.01052387,1892.8,1892.5,11.73086071]
[1743227136349,3.01052387,1892.8,1892.5,6.44686071]
[1743227136648,3.01052387,1892.8,1892.6,5.28372]
[1743227140388,3.01052387,1892.8,1892.5,7.23536071]
[1743227141554,3.01052387,1892.8,1892.5,7.23533071]
[1743227141755,3.01052387,1892.8,1892.6,5.28353]
[1743227142587,9.07086387,1893.0,1892.6,6.53541607]
[1743227144196,9.07086387,1893.0,1892.6,5.28353]
[1743227144402,14.35371387,1893.0,1892.7,0.26003901]
[1743227144758,14.35371387,1893.0,1892.5,6.07232]
[1743227144993,14.35371387,1893.0,1892.8,0.25992189]
[1743227145181,14.35371387,1893.0,1892.5,6.07232]
[1743227145380,12.07086387,1893.0,1892.9,0.25980478]
[1743227145600,17.35374387,1893.0,1892.5,6.07232]
[1743227146098,17.35374387,1893.0,1892.6,0.26015614]
[1743227149404,6.01052387,1893.0,1892.7,5.28318]
[1743227149912,3.01052387,1893.2,1893.0,5.28247]
[1743227150207,3.01052387,1893.2,1892.9,5.28277]
[1743227150409,6.01052387,1893.2,1893.1,0.26142632]
[1743227150574,6.01052387,1893.2,1893.0,0.26172525]
[1743227150770,6.01052387,1893.2,1893.1,0.26142632]
[1743227151089,6.01052387,1893.2,1892.9,5.28277]
[1743227151404,6.01052387,1893.2,1893.1,0.26142632]
[1743227151607,6.01052387,1893.2,1893.0,0.26172525]
[1743227151814,6.01052387,1893.2,1893.1,0.26142632]
[1743227152105,6.01052387,1893.2,1892.9,5.28277]
[1743227152306,6.01052387,1893.2,1893.1,0.26142632]
[1743227152513,3.01052387,1893.2,1893.0,0.26172525]
[1743227152661,3.01052387,1893.2,1893.1,0.26142632]
[1743227152865,3.01052387,1893.2,1892.9,5.28277]
[1743227153093,3.01052387,1893.2,1893.0,0.26172525]
[1743227153565,3.01052387,1893.2,1893.0,1.32977897]
[1743227153761,3.8315,1893.4,1893.0,1.32977897]
[1743227153962,12.12355387,1893.4,1893.0,6.61223897]
[1743227154167,17.40530387,1893.4,1893.0,6.35051372]
[1743227154366,17.40530387,1893.4,1893.1,0.26142632]
[1743227155803,12.12355387,1893.4,1893.1,0.26142632]
[1743227155982,16.57368387,1893.4,1893.1,1.06292632]
[1743227158100,16.57368387,1893.4,1893.1,0.26142632]
[1743227158101,5.28206,1893.2,1893.1,0.26142632]
[1743227158283,8.29258387,1893.2,1893.1,0.26142632]
[1743227158485,8.29258387,1893.2,1892.8,0.8015]
[1743227158801,13.57486387,1893.2,1892.9,0.26184234]
[1743227159210,5.28234,1893.1,1892.9,0.26184234]
[1743227160510,8.29258387,1893.2,1892.9,0.26184234]
[1743227161378,5.28235,1893.1,1892.9,0.26184234]
[1743227161911,8.29258387,1893.2,1892.9,0.26184234]
[1743227162106,3.01052387,1893.2,1892.9,6.34717003]
[1743227162492,3.01052387,1893.2,1893.0,5.28256]
[1743227162808,3.01052387,1893.2,1893.1,1.08881299]
[1743227163021,11.29229387,1893.4,1893.1,1.08881299]
[1743227163210,6.01052387,1893.4,1893.1,1.08881299]
[1743227163411,11.29215387,1893.4,1893.1,1.72593529]
[1743227163811,5.28182,1893.3,1893.1,1.72593529]
[1743227164012,5.28182,1893.3,1893.1,1.08881299]
[1743227170021,10.56386,1893.3,1893.1,0.26081299]
[1743227170322,5.28206,1893.2,1893.1,0.26081299]
[1743227173087,5.28182,1893.3,1893.1,0.26081299]
[1743227173921,11.29203387,1893.4,1893.1,0.26081299]
[1743227174123,6.01052387,1893.4,1893.1,0.26081299]
[1743227174304,6.01052387,1893.4,1893.2,5.28187]
[1743227174503,3.0,1893.4,1893.2,6.3643703]
[1743227174705,8.29149387,1893.6,1893.3,1.08768606]
[1743227175421,5.28124,1893.5,1893.3,1.08768606]
[1743227176839,13.57265387,1893.6,1893.3,1.08768606]
[1743227178197,5.28125,1893.5,1893.3,1.08768606]
[1743227178428,5.28125,1893.5,1893.3,1.41248875]
[1743227182235,8.29149387,1893.6,1893.3,1.41248875]
[1743227182422,13.57267387,1893.6,1893.3,1.41248875]
[1743227182808,5.28124,1893.5,1893.3,1.41248875]
[1743227183033,1.80492702,1893.4,1893.3,1.41248875]
[1743227183340,1.80492702,1893.6,1893.3,6.69423875]
[1743227183517,1.80492702,1893.6,1893.4,0.66942388]
[1743227183722,1.80492702,1893.5,1893.4,0.66942388]
[1743227184238,1.80492702,1893.5,1893.3,1.15280269]
[1743227184535,1.80492702,1893.4,1893.3,0.32480269]
[1743227184737,6.10638,1893.3,1892.9,6.06333]
[1743227185034,1.80492702,1893.0,1892.8,5.28317]
[1743227185404,1.80492702,1893.1,1892.8,5.28317]
[1743227185604,1.80492702,1893.0,1892.8,1.06075288]
[1743227185804,1.80492702,1893.0,1892.8,1.77323917]
[1743227186112,7.08729702,1893.1,1892.8,1.77323917]
[1743227186304,1.80492702,1893.1,1892.8,7.05639917]
[1743227187134,1.80492702,1893.1,1892.8,12.33938917]
[1743227187316,3.0,1893.4,1893.1,5.28232]
[1743227187508,3.0,1893.4,1892.9,0.7807]
[1743227187710,1.5024827,1893.6,1892.9,0.7807]
[1743227187711,1.80492702,1893.6,1893.4,5.28149]
[1743227188057,1.80492702,1893.6,1893.4,6.06219]
[1743227188731,1.80492702,1893.6,1893.4,0.7807]
[1743227189035,8.28841794,1893.7,1893.4,0.7807]
[1743227189402,8.28841794,1893.7,1893.5,0.25816366]
[1743227189599,5.28094,1893.6,1893.5,0.25816366]
[1743227189808,13.56923794,1893.7,1893.5,0.25816366]
[1743227190006,8.28841794,1893.7,1893.5,0.25816366]
[1743227190407,13.56920794,1893.7,1893.5,0.25816366]
[1743227191738,8.28841794,1893.7,1893.5,0.25816366]
[1743227191939,3.00763794,1893.7,1893.5,0.25816366]
[1743227192242,3.0,1893.8,1893.5,0.89019603]
[1743227192446,3.0,1893.8,1893.5,6.17137603]
[1743227193413,3.0,1893.8,1893.6,0.8123]
[1743227193812,3.0,1893.8,1893.7,0.25640428]
[1743227194013,8.28038,1893.8,1893.7,0.25640428]
[1743227194214,8.28038,1893.8,1893.5,0.63203237]
[1743227194541,8.28038,1893.8,1893.6,0.25696747]
[1743227195042,3.0,1893.8,1893.6,0.25696747]
[1743227195241,5.28011,1893.9,1893.6,0.87397345]
[1743227196146,5.28011,1893.9,1893.6,0.25696747]
[1743227196318,10.56044,1893.9,1893.6,0.25696747]
[1743227196520,5.28011,1893.9,1893.6,0.25696747]
[1743227196722,10.56038,1893.9,1893.6,0.25696747]
[1743227196938,5.28011,1893.9,1893.6,0.25696747]
[1743227197245,5.28011,1893.9,1893.6,0.87397745]
[1743227198318,5.28003,1894.0,1893.7,0.8123]
[1743227198645,5.28003,1894.0,1893.8,0.25584114]
[1743227199248,10.56009,1894.0,1893.8,0.25584114]
[1743227202459,5.28003,1894.0,1893.8,0.25584114]
[1743227203651,0.7676,1894.1,1893.8,0.25584114]
[1743227203854,5.27979,1894.1,1893.8,0.25584114]
[1743227204159,13.5595,1894.1,1893.8,0.25584114]
[1743227204365,10.5595,1894.1,1893.8,0.25584114]
[1743227205836,8.27971,1894.1,1893.8,0.25584114]
[1743227207545,8.27971,1894.1,1893.8,0.99475029]
[1743227208872,3.0,1894.1,1893.8,6.27508029]
[1743227209043,8.27966,1894.1,1893.8,0.99475029]
[1743227209872,3.0,1894.1,1893.8,6.27507029]
[1743227210885,8.27956,1894.1,1893.8,0.99475029]
[1743227213558,3.0,1894.1,1893.8,6.27507029]
[1743227213761,3.0,1894.1,1893.9,0.62750703]
[1743227213946,3.0,1894.1,1894.0,0.25279687]
[1743227218557,5.27874,1894.4,1894.0,5.53259687]
[1743227219387,8.28666794,1894.3,1894.0,0.25279687]
[1743227219684,8.7518,1894.5,1894.0,0.25279687]
[1743227219685,8.28718794,1894.1,1894.0,0.25279687]
[1743227220057,5.27992,1894.0,1893.7,0.7695]
[1743227220384,5.27992,1894.0,1893.7,1.436233]
[1743227223096,13.56689794,1894.1,1893.7,6.716853]
[1743227223464,6.09512,1894.2,1893.8,5.28022]
[1743227223670,9.10275794,1894.2,1893.8,5.28022]
[1743227224394,9.10275794,1894.2,1893.7,6.716853]
[1743227224593,5.27966,1894.1,1893.8,0.6716853]
[1743227225294,10.55946,1894.1,1893.8,0.6716853]
[1743227225461,5.27966,1894.1,1893.8,0.6716853]
[1743227225662,5.27966,1894.1,1893.7,0.7695]
[1743227226189,5.27985,1894.0,1893.7,0.7695]
[1743227226371,5.28023,1893.9,1893.6,1.07144369]
[1743227227492,5.27962,1894.1,1893.8,0.7983]
[1743227227998,8.27899,1894.3,1893.9,5.28004]
[1743227228297,8.27899,1894.3,1893.9,6.415891]
[1743227232297,8.27899,1894.3,1893.9,11.695801]
[1743227232679,8.27899,1894.3,1893.9,6.415761]
[1743227234516,8.27899,1894.3,1894.0,0.2516307]
[1743227234809,5.27899,1894.3,1894.1,0.7983]
[1743227235012,5.27899,1894.3,1894.2,0.25050484]
[1743227236017,5.27899,1894.3,1894.0,0.7768]
[1743227236194,10.55822,1894.3,1894.2,0.25050484]
[1743227236397,10.55822,1894.3,1894.0,0.7768]
[1743227236591,10.55822,1894.3,1894.1,0.25106774]
[1743227236785,5.27899,1894.3,1894.1,0.25106774]
[1743227237416,0.7692,1894.0,1892.9,0.7768]
[1743227237718,5.28239,1893.1,1892.8,0.67898006]
[1743227237887,5.28239,1893.1,1892.7,7.00568188]
[1743227238085,5.28239,1893.1,1892.7,0.7768]
[1743227238291,10.56498,1893.1,1892.8,0.00115771]
[1743227238614,10.56498,1893.1,1892.7,1.82934799]
[1743227238777,10.56498,1893.1,1892.7,1.4880928]
[1743227238973,10.56498,1893.1,1892.8,0.00115771]
[1743227239177,10.56498,1893.1,1892.7,1.4880928]
[1743227239377,5.28239,1893.1,1892.8,0.00115771]
[1743227239688,5.28239,1893.1,1892.7,1.4880928]
[1743227240086,5.28239,1893.1,1892.8,0.00115771]
[1743227240416,5.28239,1893.1,1892.7,1.4880928]
[1743227240716,5.28239,1893.1,1892.8,0.00115771]
[1743227241029,5.28239,1893.1,1892.7,1.4880928]
[1743227241501,5.28239,1893.1,1892.8,0.00115771]
[1743227241814,5.28239,1893.1,1892.7,1.4880928]
[1743227241972,5.28239,1893.1,1892.8,0.00115771]
[1743227242171,5.28239,1893.1,1892.7,1.4880928]
[1743227242372,5.28239,1893.1,1892.8,0.00115771]
[1743227242572,5.28239,1893.1,1892.7,6.7715228]
[1743227242773,5.28301,1892.9,1892.8,0.00115771]
[1743227242976,5.28324,1892.8,1892.4,6.06084]
[1743227243185,8.29087794,1892.8,1892.5,0.00249769]
[1743227243968,5.28353,1892.7,1892.5,0.00249769]
[1743227244168,13.57416794,1892.8,1892.3,10.56891]
[1743227244378,13.57419794,1892.8,1892.4,1.05983545]
[1743227245079,13.57419794,1892.8,1892.5,0.16600822]
[1743227245311,8.29087794,1892.8,1892.5,0.16600822]
[1743227245483,8.29087794,1892.8,1892.6,0.00205098]
[1743227247609,5.28345,1892.7,1892.6,0.00205098]
[1743227249420,5.28345,1892.7,1892.6,0.17118647]
[1743227255949,7.40568279,1892.7,1892.6,0.17118647]
[1743227259769,5.28426,1892.5,1892.1,6.11052]
[1743227260058,3.00763794,1892.4,1892.2,0.17395391]
[1743227260843,5.28457,1892.3,1892.2,0.17395391]
[1743227266667,5.28513,1892.2,1891.9,0.8255]
[1743227266834,3.00763794,1892.1,1891.9,0.8255]
[1743227267782,8.29284794,1892.1,1891.9,0.8255]
[1743227267965,3.00763794,1892.1,1891.9,0.8255]
[1743227269750,4.5778102,1892.1,1891.6,0.7647]
[1743227270062,3.00763794,1891.8,1891.5,5.28662]
[1743227270252,3.00763794,1891.8,1891.7,0.00607307]
[1743227270560,3.00763794,1891.8,1891.6,5.29303021]
[1743227271431,0.8228,1891.7,1891.6,0.00652021]
[1743227271636,0.8228,1891.7,1891.3,5.28722]
[1743227272254,3.00763794,1891.8,1891.5,5.28677]
[1743227272649,3.00763794,1891.8,1891.4,6.05173]
[1743227272941,3.00763794,1891.8,1891.5,5.29365739]
[1743227274061,3.00763794,1891.8,1891.5,0.00696739]
[1743227274362,8.29360794,1891.8,1891.5,0.00696739]
[1743227274565,10.57284,1891.7,1891.5,0.00696739]
[1743227274882,3.83043794,1891.6,1891.2,6.05219]
[1743227275036,9.11710794,1891.6,1891.0,6.05289]
[1743227275236,3.00763794,1891.4,1891.1,5.28779]
[1743227275436,3.00763794,1891.4,1891.0,6.05278]
[1743227276574,8.29483794,1891.4,1891.0,6.05289]
[1743227276869,9.12432173,1891.4,1891.0,0.7647]
[1743227277045,9.12432173,1891.4,1890.9,6.05318]
[1743227277046,5.28749,1891.3,1890.9,6.05318]
[1743227277643,9.12432173,1891.4,1890.9,11.34156]
[1743227277846,8.29483794,1891.4,1891.0,5.2882]
[1743227278476,8.29483794,1891.4,1891.1,0.00875659]
[1743227279377,8.29483794,1891.4,1891.2,0.1753839]
[1743227279544,8.29483794,1891.4,1891.1,0.00875659]
[1743227279743,8.29483794,1891.4,1891.2,0.1753839]
[1743227279966,5.28749,1891.3,1891.1,0.00875659]
[1743227280166,5.28749,1891.3,1891.2,0.1753839]
[1743227280365,5.28749,1891.3,1890.9,6.05308]
[1743227280571,5.28749,1891.3,1891.0,0.00920401]
[1743227281944,6.07709,1891.3,1891.0,0.00920401]
[1743227286287,0.7896,1891.3,1891.0,5.29730401]
[1743227287185,6.07697,1891.3,1891.0,0.00920401]
[1743227287480,11.36457,1891.3,1891.0,0.00920401]
[1743227287781,8.29538794,1891.2,1891.0,0.00920401]
[1743227287985,8.29538794,1891.2,1890.8,5.28875]
[1743227288277,8.29538794,1891.2,1890.9,0.00965147]
[1743227290085,8.29583794,1891.0,1890.9,0.00965147]
[1743227290796,5.2885,1890.9,1890.7,0.7523]
[1743227290974,5.2885,1890.9,1890.8,0.01009899]
[1743227292196,5.2885,1890.9,1890.6,0.7523]
[1743227292395,5.2885,1890.9,1890.7,0.01054655]
[1743227292966,5.28876,1890.8,1890.5,0.7523]
[1743227293247,5.28876,1890.8,1890.6,0.01099415]
[1743227293577,9.35412394,1890.8,1890.6,0.01099415]
[1743227293878,3.00763794,1890.8,1890.6,0.01099415]
[1743227294461,3.00763794,1890.8,1890.7,0.16102996]
[1743227295311,8.29639794,1890.8,1890.7,0.16102996]
[1743227295985,8.29639794,1890.8,1890.7,0.17157651]
[1743227296669,3.00763794,1890.8,1890.7,0.17157651]
[1743227297884,5.28862,1890.9,1890.7,0.17157651]
[1743227299581,10.57733,1890.9,1890.7,0.17157651]
[1743227299895,5.28876,1890.8,1890.7,0.17157651]
[1743227307606,3.0,1890.9,1890.7,0.17157651]
[1743227308079,8.28862,1890.9,1890.7,0.17157651]
[1743227308280,5.28876,1890.8,1890.7,0.17157651]
[1743227312506,8.28862,1890.9,1890.7,0.17157651]
[1743227312811,13.57732,1890.9,1890.7,0.17157651]
[1743227313174,5.28876,1890.8,1890.7,0.17157651]
[1743227319233,15.38716296,1890.9,1890.7,0.17157651]
[1743227319396,15.38722296,1890.9,1890.7,0.17157651]
[1743227319710,5.28876,1890.8,1890.7,0.17157651]
[1743227320011,15.38714296,1890.9,1890.7,0.17157651]
[1743227321316,10.09851296,1890.9,1890.7,0.17157651]
[1743227321503,15.38722296,1890.9,1890.7,0.17157651]
[1743227322229,10.09851296,1890.9,1890.7,0.17157651]
[1743227322424,4.80989296,1890.9,1890.7,0.17157651]
[1743227322632,10.09850296,1890.9,1890.7,0.17157651]
[1743227322928,15.38718296,1890.9,1890.7,0.17157651]
[1743227323723,5.28876,1890.8,1890.7,0.17157651]
[1743227325326,7.09850296,1890.9,1890.7,0.17157651]
[1743227325533,1.80989296,1890.9,1890.8,5.28876]
[1743227325683,4.943,1891.2,1891.1,5.28792]
[1743227326119,1.80989296,1891.4,1891.1,5.28792]
[1743227326287,1.80989296,1891.3,1891.1,5.28792]
[1743227326484,1.80989296,1891.3,1891.0,6.0532]
[1743227326786,1.80989296,1891.2,1891.0,6.0532]
[1743227327011,8.30224763,1891.4,1891.0,6.0532]
[1743227327409,13.58946763,1891.4,1891.0,6.0532]
[1743227327800,8.30224763,1891.4,1891.0,6.05304]
[1743227328725,11.04802,1891.5,1891.1,5.28781]
[1743227328933,10.22992,1891.5,1891.1,5.2878]
[1743227329489,10.22992,1891.5,1891.2,0.00830922]
[1743227329689,10.22992,1891.5,1891.1,5.2878]
[1743227330030,5.28708,1891.4,1891.2,0.00830922]
[1743227330327,5.28708,1891.4,1891.0,6.658494]
[1743227330484,10.22992,1891.5,1891.3,0.00786189]
[1743227330689,3.01515763,1891.4,1891.0,6.05308]
[1743227331225,3.01515763,1891.4,1891.0,11.34117]
[1743227331618,3.01515763,1891.4,1891.0,6.05308]
[1743227331819,8.30228763,1891.4,1891.0,6.05308]
[1743227332029,8.30228763,1891.4,1891.0,11.946478]
[1743227333036,8.30228763,1891.4,1891.1,0.00875659]
[1743227333538,3.01515763,1891.4,1891.1,5.29665659]
[1743227339447,11.30279763,1891.2,1891.1,0.00875659]
[1743227339611,5.28808,1891.1,1890.6,6.05421]
[1743227339811,10.57624,1891.1,1890.7,0.01054655]
[1743227340240,10.57615,1891.1,1890.7,5.29955655]
[1743227340839,10.57616,1891.1,1890.7,5.29955655]
[1743227341240,5.28826,1891.0,1890.7,0.01054655]
[1743227342910,9.07051763,1891.0,1890.7,0.01054655]
[1743227343249,5.28849,1890.9,1890.7,0.01054655]
[1743227343441,5.28849,1890.9,1890.5,5.28948]
[1743227343614,5.28849,1890.9,1890.8,0.01009899]
[1743227343807,5.28849,1890.9,1890.5,9.223525]
[1743227344011,5.28849,1890.9,1890.6,0.01099415]
[1743227345455,9.07051763,1891.0,1890.6,5.30027415]
[1743227347640,14.35894763,1891.0,1890.6,5.30027415]
[1743227348443,14.35891763,1891.0,1890.6,5.30027415]
[1743227348642,3.78225763,1891.0,1890.6,0.01099415]
[1743227348843,0.8137,1891.2,1890.7,6.14755863]
[1743227349041,4.943,1891.3,1891.1,5.28781]
[1743227349206,6.06,1891.5,1891.1,5.28781]
[1743227349207,4.943,1891.5,1891.1,5.28781]
[1743227349414,4.80907006,1891.4,1891.2,0.00830922]
[1743227349637,4.80907006,1891.4,1891.1,5.28792]
[1743227349844,4.80907006,1891.4,1891.1,6.426102]
[1743227350041,1.80907006,1891.3,1891.2,0.16867358]
[1743227351345,4.80907006,1891.4,1891.2,0.16867358]
[1743227352638,1.80907006,1891.3,1891.2,0.16867358]
[1743227352841,3.0,1891.4,1891.2,0.16867358]
[1743227353223,8.30164773,1891.5,1891.2,0.16867358]
[1743227353762,13.58857773,1891.5,1891.2,0.16867358]
[1743227354139,8.30164773,1891.5,1891.2,0.16867358]
[1743227356761,3.01483773,1891.5,1891.2,5.45616358]
[1743227357975,8.30165773,1891.5,1891.2,5.45616358]
[1743227358290,17.05718773,1891.6,1891.2,5.45627358]
[1743227358429,12.11518773,1891.6,1891.3,0.7584]
[1743227358632,12.11518773,1891.6,1891.3,0.92656803]
[1743227361965,3.82853773,1891.6,1891.3,6.21388803]
[1743227363075,9.11508773,1891.6,1891.3,0.92656803]
[1743227365792,9.11508773,1891.6,1891.3,0.16816803]
[1743227366077,11.0494215,1891.6,1891.3,0.16816803]
[1743227368258,9.11508773,1891.6,1891.3,0.16816803]
[1743227372782,14.40183773,1891.6,1891.3,0.16816803]
[1743227372981,1.80873424,1891.5,1891.3,0.16816803]
[1743227377587,1.80873424,1891.5,1891.3,5.45552803]
[1743227377888,1.80873424,1891.5,1891.4,0.8039]
[1743227378184,7.09534424,1891.6,1891.4,0.965354]
[1743227379183,7.09534424,1891.6,1891.4,0.161454]
[1743227379990,1.80873424,1891.5,1891.4,0.161454]
[1743227381457,7.09534424,1891.6,1891.4,0.161454]
[1743227381756,1.80873424,1891.6,1891.4,5.448284]
[1743227381961,10.2271,1891.8,1891.5,0.8039]
[1743227382189,3.0,1891.8,1891.5,6.0905]